fUST/lending_fUST_20260106
["ID","MTS","AMOUNT","RATE_DAILY","PERIOD"]
[400497665,1767670238704,-500.0,0.00012898,2]
[400497667,1767670238714,-500.0,0.00012898,2]
[400497669,1767670238723,-500.0,0.00012898,2]
[400497691,1767670238924,-500.0,0.00012898,2]
[400497694,1767670238940,-560.25353186,0.00012898,2]
[400497696,1767670238950,-500.0,0.00012898,2]
[400497698,1767670238959,-500.0,0.00012898,2]
[400497700,1767670238968,-500.0,0.00012898,2]
[400497702,1767670238978,-500.0,0.00012898,2]
[400497704,1767670238991,-500.0,0.00012898,2]
[400497706,1767670239001,-500.0,0.00012898,2]
[400497707,1767670239010,-500.0,0.00012898,2]
[400497709,1767670239020,-500.0,0.00012898,2]
[400497711,1767670239030,-500.0,0.00012898,2]
[400497713,1767670239040,-500.0,0.00012898,2]
[400497715,1767670239049,-500.0,0.00012898,2]
[400497718,1767670239059,-500.0,0.00012898,2]
[400497720,1767670239070,-484.88574055,0.00012898,2]
[400497722,1767670239079,-500.0,0.00012898,2]
[400497724,1767670239088,-192.69391506,0.00012898,2]
[400497726,1767670239098,-151.0,0.000129,2]
[400497728,1767670239107,-151.0,0.000129,2]
[400497730,1767670239117,-3060.58361807,0.00013041,2]
[400497731,1767670239126,-1041.66666667,0.00013125,2]
[400497733,1767670239135,-500.0,0.00013273,2]
[400497735,1767670239146,-500.0,0.00013273,2]
[400497737,1767670239155,-500.0,0.00013273,2]
[400497739,1767670239164,-500.0,0.00013273,2]
[400497741,1767670239174,-500.0,0.00013273,2]
[400497744,1767670239185,-500.0,0.00013273,2]
[400497746,1767670239194,-500.0,0.00013273,2]
[400497748,1767670239204,-500.0,0.00013273,2]
[400497750,1767670239214,-500.0,0.00013273,2]
[400497752,1767670239223,-500.0,0.00013273,2]
[400497754,1767670239233,-500.0,0.00013273,2]
[400497756,1767670239242,-196.86475902,0.00013273,2]
[400497757,1767670239251,-500.0,0.00013273,2]
[400497759,1767670239260,-500.0,0.00013273,2]
[400497761,1767670239270,-500.0,0.00013273,2]
[400497763,1767670239279,-500.0,0.00013273,2]
[400497766,1767670239288,-500.0,0.00013273,2]
[400497768,1767670239298,-500.0,0.00013273,2]
[400497769,1767670239307,-500.0,0.00013273,2]
[400497771,1767670239316,-500.0,0.00013273,2]
[400497773,1767670239326,-500.0,0.00013273,2]
[400497775,1767670239336,-500.0,0.00013273,2]
[400497778,1767670239346,-500.0,0.00013273,2]
[400497779,1767670239355,-500.0,0.00013273,2]
[400497781,1767670239365,-500.0,0.00013273,2]
[400497783,1767670239375,-500.0,0.00013273,2]
[400497785,1767670239383,-500.0,0.00013273,2]
[400497786,1767670239393,-500.0,0.00013273,2]
[400497788,1767670239402,-500.0,0.00013273,2]
[400497790,1767670239411,-500.0,0.00013273,2]
[400497791,1767670239420,-500.0,0.00013273,2]
[400497793,1767670239430,-500.0,0.00013273,2]
[400497795,1767670239439,-500.0,0.00013273,2]
[400497797,1767670239449,-156.1,0.000134,2]
[400497798,1767670239458,-151.0,0.00013537,2]
[400497799,1767670239467,-151.0,0.00013537,2]
[400497800,1767670239477,-286.0795197,0.00013537,2]
[400497801,1767670239487,-151.0,0.00013537,2]
[400497802,1767670239496,-151.0,0.00013537,2]
[400497803,1767670239505,-151.0,0.00013537,2]
[400497804,1767670239515,-151.0,0.00013537,2]
[400497805,1767670239525,-151.0,0.00013537,2]
[400497806,1767670239533,-299.09793067,0.00013537,2]
[400497807,1767670239542,-500.0,0.00013537,2]
[400497808,1767670239551,-250.0,0.00013537,2]
[400497809,1767670239560,-2398.4119403,0.00013537,2]
[400497810,1767670239569,-500.0,0.00013537,2]
[400497811,1767670239578,-153.4156913,0.00013537,2]
[400497812,1767670239587,-250.0,0.00013537,2]
[400497813,1767670239596,-500.0,0.00013537,2]
[400497814,1767670239606,-250.0,0.00013537,2]
[400497815,1767670239614,-250.0,0.00013537,2]
[400497816,1767670239624,-500.0,0.00013537,2]
[400497817,1767670239633,-250.0,0.00013537,2]
[400497818,1767670239642,-500.0,0.00013537,2]
[400497819,1767670239652,-500.0,0.00013537,2]
[400497820,1767670239662,-250.0,0.00013537,2]
[400497821,1767670239671,-250.0,0.00013537,2]
[400497822,1767670239681,-500.0,0.00013537,2]
[400497823,1767670239690,-500.0,0.00013537,2]
[400497824,1767670239699,-255.24985543,0.00013537,2]
[400497825,1767670239708,-500.0,0.00013537,2]
[400497826,1767670239718,-500.0,0.00013537,2]
[400497827,1767670239727,-500.0,0.00013537,2]
[400497828,1767670239736,-500.0,0.00013537,2]
[400497829,1767670239746,-500.0,0.00013537,2]
[400497830,1767670239755,-500.0,0.00013537,2]
[400497831,1767670239764,-269.31055693,0.00013537,2]
[400497832,1767670239774,-1092.31123047,0.00013537,2]
[400497833,1767670239784,-2030.296672,0.00013537,2]
[400497834,1767670239794,-496.47127164,0.00013537,2]
[400497835,1767670239803,-30000.0,0.00013537,2]
[400497836,1767670239812,-2105.41764886,0.00013592,2]
[400497837,1767670239822,-2183.31810187,0.00013647,2]
[400497838,1767670239831,-300.0,0.00013673,2]
[400497839,1767670239840,-1905.13,0.00013698,2]
[400497840,1767670239849,-1905.13,0.00013698,2]
[400497841,1767670239858,-1905.13,0.00013698,2]
[400497842,1767670239867,-1905.13,0.00013698,2]
[400497844,1767670239876,-1905.13,0.00013698,2]
[400497846,1767670239885,-1905.13,0.00013698,2]
[400497848,1767670239894,-1905.13,0.00013698,2]
[400497849,1767670239903,-1905.13,0.00013698,2]
[400497850,1767670239912,-1905.13,0.00013698,2]
[400497851,1767670239921,-1905.13,0.00013698,2]
[400497852,1767670239930,-1905.13,0.00013698,2]
[400497853,1767670239939,-1905.13,0.00013698,2]
[400497854,1767670239948,-1905.13,0.00013698,2]
[400497855,1767670239958,-1905.13,0.00013698,2]
[400497856,1767670239971,-1905.13,0.00013698,2]
[400497857,1767670239982,-1905.13,0.00013698,2]
[400497858,1767670239993,-1905.13,0.00013698,2]
[400497859,1767670240003,-1905.13,0.00013698,2]
[400497860,1767670240013,-1905.13,0.00013698,2]
[400497861,1767670240023,-1905.13,0.00013698,2]
[400497862,1767670240033,-1905.13,0.00013698,2]
[400497863,1767670240043,-1905.13,0.00013698,2]
[400497864,1767670240052,-1905.13,0.00013698,2]
[400497865,1767670240062,-1905.17,0.00013698,2]
[400497866,1767670240075,-500.0,0.00013698,2]
[400497868,1767670240085,-500.0,0.00013698,2]
[400497870,1767670240094,-500.0,0.00013698,2]
[400497872,1767670240103,-500.0,0.00013698,2]
[400497873,1767670240112,-476.39506874,0.00013698,2]
[400497874,1767670240122,-500.0,0.00013698,2]
[400497875,1767670240131,-500.0,0.00013698,2]
[400497876,1767670240141,-500.0,0.00013698,2]
[400497877,1767670240150,-500.0,0.00013698,2]
[400497878,1767670240159,-500.0,0.00013698,2]
[400497879,1767670240172,-500.0,0.00013698,2]
[400497880,1767670240181,-500.0,0.00013698,2]
[400497881,1767670240191,-500.0,0.00013698,2]
[400497882,1767670240201,-500.0,0.00013698,2]
[400497883,1767670240210,-500.0,0.00013698,2]
[400497884,1767670240219,-500.0,0.00013698,2]
[400497885,1767670240228,-500.0,0.00013698,2]
[400497886,1767670240238,-500.0,0.00013698,2]
[400497888,1767670240247,-500.0,0.00013698,2]
[400497889,1767670240257,-500.0,0.00013698,2]
[400497890,1767670240266,-500.0,0.00013698,2]
[400497891,1767670240276,-500.0,0.00013698,2]
[400497892,1767670240285,-500.0,0.00013698,2]
[400497894,1767670240295,-500.0,0.00013698,2]
[400497895,1767670240304,-500.0,0.00013698,2]
[400497897,1767670240314,-627.34864366,0.00013698,2]
[400497898,1767670240324,-500.0,0.00013698,2]
[400497899,1767670240334,-500.0,0.00013698,2]
[400497900,1767670240343,-560.87931796,0.00013698,2]
[400497902,1767670240353,-25520.5014913,0.00013699,2]
[400497903,1767670240362,-2185.152496,0.00013699,2]
[400497904,1767670240373,-500.0,0.00013699,2]
[400497905,1767670240383,-500.0,0.00013699,2]
[400497906,1767670240395,-184.59334166,0.00013699,2]
[400497907,1767670240404,-491.42200278,0.00013699,2]
[400497908,1767670240416,-500.0,0.00013699,2]
[400497909,1767670240425,-501.85764264,0.00013699,2]
[400497910,1767670240435,-500.0,0.00013699,2]
[400497911,1767670240444,-500.0,0.00013699,2]
[400497912,1767670240454,-418.16525297,0.00013699,2]
[400497913,1767670240464,-500.0,0.00013699,2]
[400497914,1767670240474,-500.0,0.00013699,2]
[400497915,1767670240483,-500.0,0.00013699,2]
[400497916,1767670240492,-500.0,0.00013699,2]
[400497917,1767670240502,-500.0,0.00013699,2]
[400497918,1767670240513,-501.71932131,0.00013699,2]
[400497919,1767670240522,-500.0,0.00013699,2]
[400497920,1767670240532,-500.0,0.00013699,2]
[400497921,1767670240541,-500.0,0.00013699,2]
[400497922,1767670240552,-500.0,0.00013699,2]
[400497923,1767670240561,-501.59205968,0.00013699,2]
[400497924,1767670240570,-500.0,0.00013699,2]
[400497925,1767670240581,-619.03545828,0.00013699,2]
[400497926,1767670240591,-500.0,0.00013699,2]
[400497927,1767670240601,-500.0,0.00013699,2]
[400497928,1767670240611,-500.0,0.00013699,2]
[400497929,1767670240620,-500.0,0.00013699,2]
[400497930,1767670240629,-500.0,0.00013699,2]
[400497931,1767670240639,-500.0,0.00013699,2]
[400497932,1767670240648,-500.0,0.00013699,2]
[400497933,1767670240657,-500.0,0.00013699,2]
[400497934,1767670240668,-500.0,0.00013699,2]
[400497935,1767670240677,-500.0,0.00013699,2]
[400497936,1767670240687,-500.0,0.00013699,2]
[400497937,1767670240696,-500.0,0.00013699,2]
[400497938,1767670240708,-500.0,0.00013699,2]
[400497939,1767670240718,-500.0,0.00013699,2]
[400497940,1767670240727,-500.0,0.00013699,2]
[400497941,1767670240736,-500.0,0.00013699,2]
[400497942,1767670240745,-500.0,0.00013699,2]
[400497943,1767670240754,-500.0,0.00013699,2]
[400497944,1767670240763,-500.0,0.00013699,2]
[400497945,1767670240772,-500.0,0.00013699,2]
[400497946,1767670240781,-500.0,0.00013699,2]
[400497947,1767670240791,-54.39945913,0.00013699,2]
[400497948,1767670240805,-445.60054087,0.00013699,2]
[400497949,1767670240814,-500.0,0.00013699,2]
[400497950,1767670240824,-500.0,0.00013699,2]
[400497951,1767670240832,-500.0,0.00013699,2]
[400497952,1767670240842,-2264.92790299,0.00013702,2]
[400497953,1767670240851,-1000.0,0.00013821,2]
[400497954,1767670240860,-1000.0,0.00013821,2]
[400497955,1767670240869,-1000.0,0.00013821,2]
[400497956,1767670240880,-1000.0,0.00013821,2]
[400497957,1767670240889,-317.13148598,0.00013821,2]
[400497958,1767670240898,-1000.0,0.00013821,2]
[400497959,1767670240907,-547.32603156,0.00013821,2]
[400497960,1767670240916,-1000.0,0.00013821,2]
[400497961,1767670240926,-1000.0,0.00013821,2]
[400497962,1767670240935,-1000.0,0.00013821,2]
[400497963,1767670240944,-1000.0,0.00013821,2]
[400497964,1767670240955,-1000.0,0.00013821,2]
[400497965,1767670240973,-1000.0,0.00013821,2]
[400497966,1767670240982,-221.52494556,0.00013821,2]
[400497967,1767670240996,-1000.0,0.00013821,2]
[400497968,1767670241006,-1000.0,0.00013821,2]
[400497969,1767670241015,-712.95436499,0.00013821,2]
[400497970,1767670241024,-1000.0,0.00013821,2]
[400497971,1767670241035,-1000.0,0.00013821,2]
[400497972,1767670241045,-1000.0,0.00013821,2]
[400497973,1767670241054,-1000.0,0.00013821,2]
[400497974,1767670241064,-740.89337711,0.00013821,2]
[400497975,1767670241074,-1000.0,0.00013821,2]
[400497976,1767670241083,-1000.0,0.00013821,2]
[400497977,1767670241093,-1000.0,0.00013821,2]
[400497978,1767670241103,-475.0,0.00013821,2]
[400497979,1767670241112,-5000.0,0.0001386,2]
[400497980,1767670241121,-486.84242919,0.0001397,2]
[400497981,1767670241130,-1945.42234704,0.0001397,2]
[400497982,1767670241139,-2487.15318209,0.00014085,2]
[400497983,1767670241148,-648.42189754,0.00014085,2]
[400497984,1767670241158,-4050.93096009,0.00014085,2]
[400497985,1767670241169,-6298.74026498,0.00014085,2]
[400497986,1767670241181,-580.52519946,0.00014085,2]
[400497987,1767670241193,-2514.17811519,0.00014085,2]
[400497988,1767670241295,-300.0,0.0001017,2]
[400497989,1767670241305,-167.93,0.0001017,2]
[400497990,1767670241316,-132.07,0.0001017,2]
[400497991,1767670241326,-300.0,0.0001017,2]
[400497992,1767670241338,-300.0,0.0001017,2]
[400497993,1767670241348,-574.43365617,0.00014085,2]
[400497994,1767670241359,-2469.67097251,0.00014085,2]
[400498011,1767670244657,-2517.96006472,0.00010068,2]
[400498012,1767670244712,-2482.03993528,0.00010068,2]
[400498013,1767670244721,-300.0,0.0001017,2]
[400498014,1767670244730,-300.0,0.0001017,2]
[400498015,1767670244739,-300.0,0.0001017,2]
[400498016,1767670244748,-300.0,0.0001017,2]
[400498017,1767670244757,-300.0,0.0001017,2]
[400498018,1767670244766,-300.0,0.0001017,2]
[400498019,1767670244777,-300.0,0.0001017,2]
[400498020,1767670244786,-300.0,0.0001017,2]
[400498021,1767670244796,-14621.5208316,0.00014085,2]
[400498022,1767670244806,-2418.41843712,0.00014111,2]
[400498023,1767670244816,-354.89719301,0.00014122,2]
[400498024,1767670244827,-362.16611583,0.00014151,2]
[400498025,1767670244836,-600.0,0.00014221,2]
[400498026,1767670244846,-1000.0,0.00014247,2]
[400498027,1767670244856,-468.6169058,0.00014247,2]
[400498028,1767670244867,-1000.0,0.00014247,2]
[400498029,1767670244877,-1000.0,0.00014247,2]
[400498030,1767670244886,-1000.0,0.00014247,2]
[400498031,1767670244897,-1000.0,0.00014247,2]
[400498032,1767670244908,-1000.0,0.00014247,2]
[400498033,1767670244918,-67.19559188,0.00014247,2]
[400498055,1767670246358,-300.0,0.0001017,2]
[400498056,1767670246368,-861.78056518,0.00014247,2]
[400498057,1767670246379,-71.02384294,0.00014247,2]
[400498058,1767670246389,-430.94415682,0.00014247,2]
[400498059,1767670246467,-264.40334013,0.00014247,2]
[400498060,1767670246478,-304.65250305,0.00014247,2]
[400498061,1767670246488,-150.27956895,0.00014247,2]
[400498062,1767670246523,-503.05499721,0.00014247,2]
[400498065,1767670246653,-1000.0,0.00014247,2]
[400498066,1767670246662,-250.0,0.00014247,2]
[400498067,1767670246671,-1000.0,0.00014247,2]
[400498068,1767670246681,-171.09189256,0.00014247,2]
[400498069,1767670246690,-1000.0,0.00014247,2]
[400498070,1767670246699,-1000.0,0.00014247,2]
[400498071,1767670246708,-1000.0,0.00014247,2]
[400498072,1767670246718,-1000.0,0.00014247,2]
[400498073,1767670246727,-502.46761331,0.00014247,2]
[400498074,1767670246736,-228.81973386,0.00014247,2]
[400498075,1767670246746,-1000.0,0.00014247,2]
[400498076,1767670246755,-1027.25208672,0.00014247,2]
[400498077,1767670246771,-1000.0,0.00014247,2]
[400498078,1767670246780,-1000.0,0.00014247,2]
[400498079,1767670246789,-1000.0,0.00014247,2]
[400498080,1767670246799,-1000.0,0.00014247,2]
[400498081,1767670246808,-1000.0,0.00014247,2]
[400498082,1767670246817,-1000.0,0.00014247,2]
[400498083,1767670246827,-1000.0,0.00014247,2]
[400498084,1767670246836,-1000.0,0.00014247,2]
[400498085,1767670246845,-1000.0,0.00014247,2]
[400498086,1767670246854,-1000.0,0.00014247,2]
[400498087,1767670246863,-1000.0,0.00014247,2]
[400498088,1767670246873,-1107.21875998,0.00014247,2]
[400498089,1767670246882,-1101.88730241,0.00014247,2]
[400498090,1767670246891,-1000.0,0.00014247,2]
[400498091,1767670246900,-1145.36036319,0.00014247,2]
[400498092,1767670246910,-1000.0,0.00014247,2]
[400498093,1767670246919,-606.99733603,0.00014247,2]
[400498094,1767670246928,-1000.0,0.00014247,2]
[400498095,1767670246938,-1000.0,0.00014247,2]
[400498096,1767670246947,-261.54059379,0.00014247,2]
[400498097,1767670246957,-401.56992059,0.00014247,2]
[400498098,1767670246966,-250.47164048,0.00014247,2]
[400498099,1767670246975,-1001.88656192,0.00014247,2]
[400498100,1767670246984,-2254.24476432,0.00014247,2]
[400498101,1767670246996,-4007.54624768,0.00014247,2]
[400498102,1767670247006,-200.0,0.00014275,2]
[400498103,1767670247015,-9119.77092178,0.00014276,2]
[400498105,1767670269521,156.57,9.3e-05,2]
[400498106,1767670286800,192.8,0.00030137,120]
[400498108,1767670332016,156.15,9.3e-05,2]
[400498110,1767670389952,150.78,9.3e-05,2]
[400498111,1767670454786,155.55,9.3e-05,2]
[400498112,1767670492439,160.0,0.000301,120]
[400498113,1767670506654,160.0,0.000301,120]
[400498114,1767670509084,153.44,9.3e-05,2]
[400498115,1767670576281,159.56,9.3e-05,2]
[400498117,1767670630091,150.41,9.3e-05,2]
[400498118,1767670698212,158.81,9.3e-05,2]
[400498119,1767670707584,155.0,3e-05,2]
[400498120,1767670749894,150.69,9.3e-05,2]
[400498123,1767670819361,158.13,9.3e-05,2]
[400498124,1767670840984,3344.90544661,9.8e-05,2]
[400498125,1767670852923,720.0,0.00030136,120]
[400498126,1767670870246,150.94,9.3e-05,2]
[400498127,1767670939188,157.52,9.3e-05,2]
[400498128,1767670990161,151.16,9.3e-05,2]
[400498130,1767671057858,156.99,9.3e-05,2]
[400498134,1767671097782,-559.0,9.9e-05,2]
[400498136,1767671105927,-275.83677828,9.925e-05,2]
[400498137,1767671105948,-1200.0,9.949e-05,2]
[400498138,1767671110974,151.36,9.3e-05,2]
[400498139,1767671177832,156.51,9.3e-05,2]
[400498140,1767671231093,150.94,9.3e-05,2]
[400498141,1767671231475,150.94,9.8e-05,2]
[400498160,1767671300461,158.77,9.3e-05,2]
[400498161,1767671351857,151.15,9.3e-05,2]
[400498162,1767671358981,-150.4,9.9e-05,2]
[400498163,1767671421124,157.83,9.3e-05,2]
[400498172,1767671432403,-559.0,9.9e-05,2]
[400498173,1767671432415,-277.51494753,0.00010147,2]
[400498174,1767671432425,-316.45206129,0.00010393,2]
[400498202,1767671438464,-553.1658229,0.00010393,2]
[400498205,1767671438477,-330.38211581,0.00010393,2]
[400498207,1767671438487,-300.0,0.00010394,2]
[400498208,1767671438497,-300.0,0.00010394,2]
[400498210,1767671438507,-300.0,0.00010394,2]
[400498212,1767671438517,-300.0,0.00010395,2]
[400498214,1767671438528,-300.0,0.00010395,2]
[400498216,1767671438538,-300.0,0.00010395,2]
[400498218,1767671438548,-300.0,0.00010395,2]
[400498220,1767671438558,-300.0,0.00010395,2]
[400498221,1767671438568,-300.0,0.00010395,2]
[400498223,1767671438578,-300.0,0.00010395,2]
[400498225,1767671438588,-300.0,0.00010395,2]
[400498227,1767671438599,-300.0,0.00010395,2]
[400498229,1767671438608,-300.0,0.00010395,2]
[400498231,1767671438618,-300.0,0.00010395,2]
[400498233,1767671438628,-300.0,0.00010395,2]
[400498236,1767671438639,-300.0,0.00010395,2]
[400498238,1767671438648,-300.0,0.00010395,2]
[400498240,1767671438662,-300.0,0.00010395,2]
[400498242,1767671438671,-1140.75158917,0.000104,2]
[400498244,1767671438681,-157.83,0.000106,2]
[400498246,1767671438690,-420.0,0.00011429,2]
[400498248,1767671438703,-1680.0,0.00011432,2]
[400498250,1767671438713,-2131.50317834,0.00011836,2]
[400498252,1767671438722,-157.83,0.000119,2]
[400498254,1767671438732,-327.46763809,0.00012147,2]
[400498256,1767671438741,-751.82,0.00012329,2]
[400498258,1767671438752,-626.51,0.00012329,2]
[400498260,1767671438762,-522.09,0.00012329,2]
[400498262,1767671438774,-435.08,0.00012329,2]
[400498264,1767671438783,-362.57,0.00012329,2]
[400498266,1767671438794,-302.14,0.00012329,2]
[400498269,1767671438804,-251.78,0.00012329,2]
[400498271,1767671438813,-209.82,0.00012329,2]
[400498273,1767671438823,-174.85,0.00012329,2]
[400498275,1767671438832,-874.26,0.00012329,2]
[400498277,1767671438841,-154.03586932,0.00012386,2]
[400498279,1767671438851,-500.0,0.00012386,2]
[400498281,1767671438860,-153.10783678,0.00012386,2]
[400498283,1767671438871,-156.80485836,0.00012386,2]
[400498285,1767671438881,-229.21411444,0.00012386,2]
[400498287,1767671438891,-500.0,0.00012386,2]
[400498289,1767671438901,-500.0,0.00012386,2]
[400498291,1767671438912,-500.0,0.00012386,2]
[400498293,1767671438922,-151.92238479,0.00012386,2]
[400498295,1767671438932,-14203.15776153,0.00012467,2]
[400498297,1767671438941,-267.72302843,0.00012522,2]
[400498299,1767671438951,-500.0,0.00012522,2]
[400498301,1767671438961,-500.0,0.00012522,2]
[400498303,1767671438970,-500.0,0.00012522,2]
[400498325,1767671439158,-523.95048039,0.00012522,2]
[400498328,1767671439178,-434.21823431,0.00012522,2]
[400498330,1767671439187,-500.0,0.00012523,2]
[400498332,1767671439197,-500.0,0.00012523,2]
[400498334,1767671439206,-609.59469468,0.00012523,2]
[400498336,1767671439215,-500.0,0.00012523,2]
[400498338,1767671439224,-152.00675301,0.00012523,2]
[400498340,1767671439234,-500.0,0.00012523,2]
[400498342,1767671439243,-1000000.0,0.0001256,2]
[400498344,1767671439252,-300.0,0.00012567,2]
[400498346,1767671439262,-600.0,0.00012574,2]
[400498348,1767671439271,-2351.0,0.00012576,2]
[400498350,1767671439281,-500.0,0.0001266,2]
[400498352,1767671439290,-500.0,0.0001266,2]
[400498354,1767671439298,-500.0,0.0001266,2]
[400498356,1767671439308,-202.6039413,0.0001266,2]
[400498358,1767671439317,-158.922237,0.0001266,2]
[400498360,1767671439327,-500.0,0.0001266,2]
[400498362,1767671439336,-200.065,0.000127,2]
[400498365,1767671439353,-500.0,0.00012797,2]
[400498367,1767671439363,-153.84819515,0.00012797,2]
[400498369,1767671439372,-500.0,0.00012797,2]
[400498370,1767671439383,-500.0,0.00012797,2]
[400498373,1767671439392,-162.92329902,0.00012797,2]
[400498374,1767671439401,-500.0,0.00012797,2]
[400498377,1767671439412,-204.88595441,0.00012797,2]
[400498379,1767671439422,-151.0,0.000128,2]
[400498381,1767671439432,-151.0,0.000128,2]
[400498382,1767671439442,-151.0,0.000128,2]
[400498385,1767671439451,-151.0,0.000128,2]
[400498387,1767671439462,-151.0,0.000128,2]
[400498388,1767671439471,-151.0,0.000128,2]
[400498390,1767671439480,-990.14293105,0.00012858,2]
[400498392,1767671439490,-3956.61115248,0.00012858,2]
[400498394,1767671439499,-500.0,0.00012934,2]
[400498397,1767671439508,-500.0,0.00012934,2]
[400498399,1767671439517,-500.0,0.00012934,2]
[400498400,1767671439527,-200.4693319,0.00012934,2]
[400498402,1767671439536,-165.36125595,0.00012934,2]
[400498404,1767671439545,-500.0,0.00012934,2]
[400498406,1767671439554,-243.3328023,0.00012934,2]
[400498407,1767671439563,-500.0,0.00013071,2]
[400498408,1767671439573,-250.0,0.00013071,2]
[400498409,1767671439582,-205.70539229,0.00013071,2]
[400498410,1767671439591,-500.0,0.00013071,2]
[400498411,1767671439601,-500.0,0.00013071,2]
[400498412,1767671439610,-1041.66666667,0.00013118,2]
[400498413,1767671439619,-157.83,0.000132,2]
[400498414,1767671439629,-500.0,0.00013208,2]
[400498415,1767671439638,-500.0,0.00013208,2]
[400498416,1767671439647,-500.0,0.00013208,2]
[400498417,1767671439658,-250.38477157,0.00013233,2]
[400498418,1767671439667,-340.82770091,0.00013273,2]
[400498419,1767671439684,-381.48667104,0.00013273,2]
[400498420,1767671439696,-500.0,0.00013273,2]
[400498421,1767671439706,-270.22569021,0.00013273,2]
[400498422,1767671439716,-500.0,0.00013273,2]
[400498423,1767671439725,-500.0,0.00013273,2]
[400498424,1767671439735,-500.0,0.00013273,2]
[400498425,1767671439744,-500.0,0.00013273,2]
[400498426,1767671439754,-500.0,0.00013273,2]
[400498427,1767671439764,-500.0,0.00013273,2]
[400498428,1767671439774,-500.0,0.00013273,2]
[400498429,1767671439784,-500.0,0.00013273,2]
[400498430,1767671439794,-500.0,0.00013273,2]
[400498431,1767671439803,-500.0,0.00013273,2]
[400498432,1767671439813,-500.0,0.00013273,2]
[400498433,1767671439822,-500.0,0.00013273,2]
[400498434,1767671439832,-500.0,0.00013273,2]
[400498435,1767671439842,-500.0,0.00013273,2]
[400498436,1767671439852,-500.0,0.00013273,2]
[400498437,1767671439861,-500.0,0.00013273,2]
[400498438,1767671439870,-500.0,0.00013273,2]
[400498439,1767671439881,-500.0,0.00013273,2]
[400498440,1767671439890,-500.0,0.00013273,2]
[400498441,1767671439900,-500.0,0.00013273,2]
[400498442,1767671439910,-500.0,0.00013273,2]
[400498443,1767671439920,-444.85685541,0.00013273,2]
[400498444,1767671439930,-500.0,0.00013273,2]
[400498445,1767671439939,-602.7767078,0.00013273,2]
[400498446,1767671439950,-500.0,0.00013273,2]
[400498447,1767671439959,-186.38733603,0.00013273,2]
[400498448,1767671439970,-500.0,0.00013273,2]
[400498449,1767671439979,-500.0,0.00013273,2]
[400498450,1767671439988,-500.0,0.00013273,2]
[400498451,1767671439998,-500.0,0.00013273,2]
[400498452,1767671440007,-500.0,0.00013273,2]
[400498453,1767671440016,-545.13520472,0.00013273,2]
[400498454,1767671440027,-500.0,0.00013273,2]
[400498455,1767671440037,-500.0,0.00013273,2]
[400498456,1767671440046,-500.0,0.00013273,2]
[400498457,1767671440056,-500.50196388,0.00013273,2]
[400498458,1767671440065,-501.1671243,0.00013273,2]
[400498459,1767671440076,-500.0,0.00013273,2]
[400498460,1767671440094,-500.0,0.00013273,2]
[400498461,1767671440104,-3122.25476751,0.00013273,2]
[400498462,1767671440113,-500.0,0.00013345,2]
[400498463,1767671440122,-500.0,0.00013345,2]
[400498464,1767671440132,-500.0,0.00013482,2]
[400498465,1767671440141,-404.22403567,0.00013482,2]